bitfinex-derivatives/quotes_ETHF0:USTF0_20250316
["timestamp","ask_amount","ask_price","bid_price","bid_amount"]
[1742122030905,3.2078,1908.9,1908.8,2.43085]
[1742122032793,2.43485,1909.0,1908.9,1.0477]
[1742122032997,2.43485,1909.0,1908.9,5.9348]
[1742122038110,1.3872,1909.0,1908.9,5.9348]
[1742122039813,2.43484,1909.0,1908.9,5.9348]
[1742122040209,0.0078604,1909.1,1909.0,1.04764]
[1742122040409,0.0078604,1909.1,1909.0,3.91694]
[1742122043506,0.0078604,1909.1,1909.0,3.20554]
[1742122043709,3.1070504,1909.1,1909.0,1.4466]
[1742122044010,2.0594604,1909.1,1908.7,3.2078]
[1742122044206,1.04775,1908.8,1908.7,3.2078]
[1742122044505,1.04775,1908.8,1908.7,7.9865]
[1742122044706,1.04775,1908.8,1908.7,5.82651]
[1742122045207,3.09935,1908.8,1908.7,5.82651]
[1742122046009,3.09935,1908.8,1908.7,4.7787]
[1742122046813,3.09935,1908.8,1908.7,3.451]
[1742122047710,3.09935,1908.8,1908.7,4.8129]
[1742122051119,1.04786,1908.6,1908.5,0.0078604]
[1742122051309,4.25566,1908.6,1908.5,4.8932604]
[1742122051708,4.93206,1908.6,1908.5,4.8932604]
[1742122052211,4.95782969,1908.6,1908.5,4.8932604]
[1742122057612,4.95782969,1908.6,1908.5,1.4422604]
[1742122057818,4.95782969,1908.6,1908.5,4.8932604]
[1742122060621,4.95782969,1908.6,1908.5,5.9411804]
[1742122060920,4.95782969,1908.6,1908.5,4.8932604]
[1742122061120,4.95782969,1908.6,1908.5,5.9411804]
[1742122061424,3.23356969,1908.6,1908.5,5.9411804]
[1742122063724,0.02576969,1908.6,1908.5,5.9411804]
[1742122064023,0.02576969,1908.6,1908.5,6.6326804]
[1742122064616,3.2078,1908.9,1908.8,1.04775]
[1742122064815,3.2078,1908.9,1908.8,4.49875]
[1742122066223,0.0078604,1909.1,1909.0,1.04764]
[1742122066423,24.65911546,1909.4,1909.3,1.04748]
[1742122066718,24.65911546,1909.4,1909.3,7.70628]
[1742122067125,24.65911546,1909.4,1909.3,4.49848]
[1742122067523,24.65911546,1909.4,1909.3,7.70628]
[1742122067922,0.0078604,1909.5,1909.4,1.04742]
[1742122068125,0.0078604,1909.5,1909.4,2.49072]
[1742122070027,1.4347604,1909.5,1909.4,2.49072]
[1742122070331,0.0078604,1909.5,1909.4,2.49072]
[1742122071127,1.0552304,1909.5,1909.4,2.49072]
[1742122073624,1.0552304,1909.5,1909.4,1.4433]
[1742122074834,1.0552304,1909.5,1909.4,2.49072]
[1742122075032,0.0078604,1909.5,1909.4,2.49072]
[1742122075929,2.7907,1909.9,1909.7,1.04722]
[1742122076130,3.83785,1909.9,1909.8,4.8447]
[1742122076529,3.83785,1909.9,1909.8,5.8919]
[1742122076723,3.83785,1909.9,1909.8,4.8447]
[1742122077231,1.0472,1909.8,1909.7,3.2156604]
[1742122077432,2.3838,1909.8,1909.7,8.0603604]
[1742122082432,2.3838,1909.8,1909.7,0.0078604]
[1742122082629,2.3838,1909.8,1909.7,3.4568604]
[1742122082929,5.5916,1909.8,1909.7,0.0078604]
[1742122083233,1.04737,1909.5,1909.4,1.4412]
[1742122083438,1.04737,1909.5,1909.4,4.8902]
[1742122084230,1.73157,1909.5,1909.4,4.8902]
[1742122085737,1.73157,1909.5,1909.4,4.8892]
[1742122086138,2.45657,1909.5,1909.4,4.8892]
[1742122087239,2.45657,1909.5,1909.4,3.448]
[1742122087441,2.45657,1909.5,1909.4,4.7765]
[1742122089639,1.04742,1909.4,1909.3,0.0078604]
[1742122089840,2.45592,1909.4,1909.3,3.4558604]
[1742122090041,2.45592,1909.4,1909.3,0.0078604]
[1742122090244,2.45592,1909.4,1909.3,3.4558604]
[1742122092541,2.45592,1909.4,1909.3,4.7890604]
[1742122101759,2.45592,1909.4,1909.3,1.3410604]
[1742122101963,1.04764,1909.0,1908.9,32.2548]
[1742122102264,1.04764,1909.0,1908.9,35.7028]
[1742122103460,2.48994,1909.0,1908.9,35.7028]
[1742122104164,2.48994,1909.0,1908.9,32.2548]
[1742122104360,2.48994,1909.0,1908.9,35.7028]
[1742122105770,2.48994,1909.0,1908.9,29.047]
[1742122106065,2.48994,1909.0,1908.9,32.495]
[1742122107666,2.48994,1909.0,1908.9,33.179]
[1742122108168,2.48994,1909.0,1908.9,34.5377]
[1742122108666,1.04764,1909.0,1908.9,34.5377]
[1742122108866,1.04764,1909.0,1908.9,35.2553]
[1742122111767,1.04764,1909.0,1908.9,36.303]
[1742122111961,1.04764,1909.0,1908.9,35.2553]
[1742122113773,1.04764,1909.0,1908.9,33.8537]
[1742122114172,3.79924,1909.0,1908.9,33.8537]
[1742122119682,3.79924,1909.0,1908.9,31.7345396]
[1742122121278,3.79924,1909.0,1908.9,30.3758396]
[1742122121467,3.79924,1909.0,1908.9,31.7305396]
[1742122121672,3.79924,1909.0,1908.9,1.3547]
[1742122124779,1.04764,1909.0,1908.9,1.3547]
[1742122125080,1.04764,1909.0,1908.9,2.0528]
[1742122125379,1.04764,1909.0,1908.9,2.763]
[1742122125881,2.46744,1909.0,1908.9,4.8017]
[1742122130684,2.46744,1909.0,1908.9,1.3547]
[1742122134085,1.04764,1909.0,1908.9,1.3547]
[1742122138286,2.36644,1909.0,1908.9,1.3547]
[1742122141486,1.0477,1908.9,1908.8,0.0078604]
[1742122141786,7.0777,1908.9,1908.8,0.0078604]
[1742122141987,8.09565363,1908.9,1908.8,0.0078604]
[1742122142193,9.20271443,1908.9,1908.8,0.0078604]
[1742122142696,15.02871443,1908.9,1908.8,0.0078604]
[1742122144988,1.04803,1908.3,1908.2,3.9116]
[1742122145187,1.04803,1908.3,1908.2,7.3586]
[1742122146293,1.04803,1908.3,1908.2,8.8124]
[1742122146892,1.04803,1908.3,1908.2,5.3654]
[1742122147083,1.04803,1908.3,1908.2,8.8124]
[1742122147280,1.04802,1908.4,1908.2,8.8124]
[1742122147588,1.04797,1908.4,1908.3,2.50183]
[1742122148094,1.04795,1908.5,1908.4,1.04797]
[1742122148286,1.04791,1908.6,1908.4,5.16547]
[1742122148593,1.04786,1908.6,1908.5,2.1785]
[1742122148790,3.2078,1908.7,1908.5,3.22638]
[1742122148984,1.04786,1908.6,1908.5,1.77258]
[1742122149490,1.04786,1908.6,1908.5,42.57258]
[1742122150583,1.04786,1908.6,1908.5,41.5247]
[1742122151188,1.04786,1908.6,1908.5,42.57262]
[1742122151790,1.04786,1908.6,1908.5,41.5247]
[1742122152491,1.04786,1908.6,1908.5,42.57262]
[1742122152683,1.04786,1908.6,1908.5,41.5247]
[1742122152884,1.04792,1908.5,1908.4,4.1175]
[1742122153085,2.48642,1908.5,1908.4,4.1175]
[1742122153786,2.48642,1908.5,1908.4,3.447]
[1742122153985,1.04797,1908.4,1908.3,29.061]
[1742122154186,2.48647,1908.4,1908.3,32.507]
[1742122159601,2.48647,1908.4,1908.3,29.061]
[1742122163704,1.04808,1908.2,1908.1,0.0078604]
[1742122163889,4.25588,1908.2,1908.1,3.4538604]
[1742122164293,5.58988,1908.2,1908.1,3.4538604]
[1742122166303,5.58988,1908.2,1908.1,0.0078604]
[1742122170605,4.25588,1908.2,1908.1,0.0078604]
[1742122170906,4.25588,1908.2,1908.1,1.3925604]
[1742122172407,5.70938,1908.2,1908.1,1.3925604]
[1742122175308,4.25588,1908.2,1908.1,1.3925604]
[1742122175510,4.25588,1908.2,1908.1,2.4407004]
[1742122175718,3.2078,1908.2,1908.1,2.4407004]
[1742122176608,4.25588,1908.2,1908.1,2.4407004]
[1742122176809,3.2078,1908.2,1908.1,2.4407004]
[1742122178913,4.25588,1908.2,1908.1,2.4407004]
[1742122180516,1.04808,1908.2,1908.1,2.4407004]
[1742122188425,1.04808,1908.2,1908.1,1.3925604]
[1742122188912,1.04808,1908.2,1908.1,2.4407004]
[1742122190216,1.04808,1908.2,1908.1,5.8857004]
[1742122195729,1.71688,1908.2,1908.1,5.8857004]
[1742122199930,1.71688,1908.2,1908.1,4.8375604]
[1742122200324,1.71688,1908.2,1908.1,3.4528604]
[1742122200825,3.8766,1908.2,1907.9,29.066]
[1742122201032,3.11304,1908.1,1908.0,3.445]
[1742122201623,4.22097913,1908.1,1908.0,3.445]
[1742122204826,4.22097913,1908.1,1907.9,29.0738604]
[1742122204827,1.04819,1908.0,1907.9,0.0078604]
[1742122205035,2.41659,1908.0,1907.9,0.0078604]
[1742122205530,2.41659,1908.0,1907.9,1.3417604]
[1742122209730,1.04816,1908.1,1908.0,1.04818]
[1742122209922,0.6688,1908.2,1907.9,1.3417604]
[1742122209923,1.04819,1908.0,1907.9,1.3417604]
[1742122210127,2.38439,1908.0,1907.9,3.2156604]
[1742122210331,1.04819,1908.0,1907.9,3.2156604]
[1742122210628,1.04819,1908.0,1907.9,4.2638804]
[1742122210830,1.3362,1908.1,1908.0,1.04819]
[1742122211030,1.04816,1908.1,1908.0,1.04818]
[1742122211437,1.04814,1908.1,1908.0,1.04818]
[1742122212232,2.38432,1908.2,1908.0,1.04818]
[1742122212430,0.16184319,2754.1,1908.1,7.3406]
[1742122212431,0.0078604,1909.0,1908.1,7.3406]
[1742122212731,2.61955,1908.7,1908.2,32.9611]
[1742122212933,1.04803,1908.3,1908.2,29.7533]
[1742122213123,1.04803,1908.3,1908.2,36.4051]
[1742122213324,1.3551,1908.5,1908.2,32.512]
[1742122213531,1.04801,1908.4,1908.3,40.8]
[1742122214433,1.04801,1908.4,1908.2,35.7198]
[1742122214639,1.04801,1908.4,1908.2,36.76784]
[1742122214837,1.04801,1908.4,1908.2,77.56784]
[1742122215341,1.3551,1908.5,1908.2,77.56784]
[1742122215342,1.04803,1908.3,1908.2,73.0758]
[1742122215640,1.71003,1908.3,1908.2,32.512]
[1742122216033,3.06513,1908.3,1908.2,32.512]
[1742122217840,3.06513,1908.3,1908.2,3.444]
[1742122218645,4.17107657,1908.3,1908.2,3.444]
[1742122220539,9.99707657,1908.3,1908.2,2.3478]
[1742122220848,1.04819,1908.0,1907.9,0.0078604]
[1742122221141,1.04819,1908.0,1907.9,3.4518604]
[1742122223137,1.04819,1908.0,1907.9,0.0078604]
[1742122223738,1.71759,1908.0,1907.9,0.0078604]
[1742122224347,3.06819,1908.0,1907.9,0.0078604]
[1742122224740,8.89419,1908.0,1907.9,0.0078604]
[1742122228643,8.89419,1908.0,1907.9,1.4649604]
[1742122229446,8.22479,1908.0,1907.9,1.4649604]
[1742122230749,2.39879,1908.0,1907.9,1.4649604]
[1742122231044,1.04819,1908.0,1907.9,2.5132104]
[1742122233157,1.04818,1908.1,1908.0,1.04815]
[1742122233358,1.04818,1908.1,1908.0,1.74125]
[1742122234755,1.04818,1908.1,1908.0,4.94905]
[1742122235056,1.04813,1908.2,1908.1,1.0481]
[1742122235257,1.04813,1908.2,1908.1,5.9497]
[1742122242355,1.04813,1908.2,1908.1,4.9016]
[1742122243556,1.04813,1908.2,1908.1,1.4576]
[1742122243757,1.04813,1908.2,1908.0,3.2078]
[1742122243960,3.86444,1908.1,1908.0,6.6508]
[1742122244365,3.86444,1908.1,1908.0,8.0153]
[1742122244863,1.04819,1908.0,1907.9,3.4508604]
[1742122245059,2.44659,1908.0,1907.9,3.4508604]
[1742122247056,2.44659,1908.0,1907.9,0.0078604]
[1742122247868,8.27259,1908.0,1907.9,0.0078604]
[1742122248473,9.37844936,1908.0,1907.9,0.0078604]
[1742122249055,8.27259,1908.0,1907.9,0.0078604]
[1742122251269,2.44659,1908.0,1907.9,0.0078604]
[1742122260880,4.94659,1908.0,1907.9,0.0078604]
[1742122261472,6.05168947,1908.0,1907.9,0.0078604]
[1742122262874,11.87768947,1908.0,1907.9,0.0078604]
[1742122264081,10.77259,1908.0,1907.9,0.0078604]
[1742122264681,8.27259,1908.0,1907.9,0.0078604]
[1742122266085,9.37644809,1908.0,1907.9,0.0078604]
[1742122269080,11.87644809,1908.0,1907.9,0.0078604]
[1742122269476,9.37644809,1908.0,1907.9,0.0078604]
[1742122270075,10.39214547,1908.0,1907.9,0.0078604]
[1742122272682,2.15204809,1908.0,1907.9,0.0078604]
[1742122272886,2.15204809,1908.0,1907.9,1.4103604]
[1742122273389,2.41099,1908.0,1907.9,1.4103604]
[1742122273587,8.23699,1908.0,1907.9,0.0078604]
[1742122273787,9.25408102,1908.0,1907.9,0.0078604]
[1742122274187,10.35793911,1908.0,1907.9,0.0078604]
[1742122275188,10.35793911,1908.0,1907.9,1.3818604]
[1742122275682,10.35803781,1908.0,1907.9,1.3818604]
[1742122275878,9.34084809,1908.0,1907.9,1.3818604]
[1742122277391,10.35821052,1908.0,1907.9,1.3818604]
[1742122277694,5.35861956,1908.0,1907.9,1.3818604]
[1742122281390,5.35861956,1908.0,1907.9,0.0078604]
[1742122281978,7.85861956,1908.0,1907.9,4e-07]
[1742122282388,7.94358222,1908.0,1907.9,4e-07]
[1742122282592,7.94358209,1908.0,1907.9,4e-07]
[1742122283388,13.76958209,1908.0,1907.9,4e-07]
[1742122283897,17.21261014,1908.0,1907.9,4e-07]
[1742122284397,1.04841,1907.6,1907.5,1.428]
[1742122285281,2.38861,1907.6,1907.5,1.428]
[1742122287593,3.07971,1907.6,1907.5,1.428]
[1742122288093,6.28751,1907.6,1907.5,1.428]
[1742122289791,1.04847,1907.5,1907.4,0.0078604]
[1742122289991,8.32247,1907.5,1907.4,0.0078604]
[1742122290889,9.33926622,1907.5,1907.4,0.0078604]
[1742122291089,10.16521591,1907.5,1907.4,0.0078604]
[1742122291297,11.27105555,1907.5,1907.4,4e-07]
[1742122291500,1.04863,1907.2,1907.1,0.97137]
[1742122291695,10.08243,1907.2,1907.1,1e-05]
[1742122291896,14.42460211,1907.2,1907.1,1e-05]
[1742122292094,13.23122622,1907.2,1907.1,1e-05]
[1742122293206,13.32026964,1907.2,1907.1,1e-05]
[1742122297406,12.21443,1907.2,1907.1,1e-05]
[1742122298495,1.04869,1907.1,1907.0,1.3799]
[1742122298701,3.08149,1907.1,1907.0,1.3799]
[1742122299909,1.04891,1906.7,1906.6,4.1448]
[1742122300109,1.04891,1906.7,1906.6,0.7018]
[1742122301511,2.46161,1906.7,1906.6,2.089]
[1742122303902,2.46161,1906.7,1906.6,1.3872]
[1742122311615,1.04891,1906.7,1906.6,1.3872]
[1742122311803,2.45051,1906.7,1906.6,1.3872]
[1742122314217,1.04902,1906.5,1906.4,0.6867]
[1742122315214,1.04907,1906.4,1906.3,3.2078]
[1742122315717,2.46427,1906.4,1906.3,4.5413]
[1742122316110,1.04907,1906.4,1906.3,4.5413]
[1742122316810,2.37307,1906.4,1906.3,4.5413]
[1742122319115,2.37307,1906.4,1906.3,1.3335]
[1742122319821,1.04907,1906.4,1906.3,1.3335]
[1742122320223,2.48407,1906.4,1906.3,1.3335]
[1742122322322,1.04907,1906.4,1906.3,1.3335]
[1742122327622,1.04907,1906.4,1906.3,2.38263]
[1742122327817,1.04907,1906.4,1906.3,1.3335]
[1742122330931,2.42977,1906.4,1906.3,1.3335]
[1742122331332,2.42977,1906.4,1906.3,2.0121]
[1742122332829,2.62282,1906.3,1905.9,2.2936]
[1742122333134,3.2078,1906.0,1905.3,2.2936]
[1742122333346,1.04935,1905.9,1905.8,1.3494]
[1742122333544,2.41395,1905.9,1905.8,1.3494]
[1742122334036,3.11555,1905.9,1905.8,1.3494]
[1742122334246,2.41395,1905.9,1905.8,1.3494]
[1742122336131,1.3646,1905.9,1905.8,2.3988]
[1742122336333,1.04935,1905.9,1905.8,2.3988]
[1742122337043,1.04935,1905.9,1905.8,42.1494]
[1742122337344,1.04935,1905.9,1905.8,43.1988]
[1742122337644,1.04935,1905.9,1905.8,42.1494]
[1742122339342,2.43325,1906.0,1905.8,42.1494]
[1742122339541,2.43325,1906.0,1905.9,4.7988]
[1742122339841,0.7279,1906.2,1905.9,4.7988]
[1742122340038,1.04924,1906.1,1906.0,5.241]
[1742122340344,2.48122,1906.2,1906.1,1.04924]
[1742122340544,2.48122,1906.2,1906.1,2.40504]
[1742122341043,1.04911,1906.4,1906.3,1.04911]
[1742122341243,1.0568704,1906.6,1906.5,1.04902]
[1742122341449,1.4393604,1906.6,1906.4,2.0509]
[1742122341743,0.0078604,1906.6,1906.5,2.39592]
[1742122341943,1.0568204,1906.6,1906.5,2.39592]
[1742122342135,0.0078604,1906.6,1906.5,2.39592]
[1742122342541,1.0568204,1906.6,1906.5,2.39592]
[1742122342748,0.0078604,1906.6,1906.5,2.39592]
[1742122342942,1.0568204,1906.6,1906.5,2.39592]
[1742122343345,0.0078604,1906.6,1906.5,2.39592]
[1742122343741,1.0568204,1906.6,1906.5,2.39592]
[1742122344648,1.0568204,1906.6,1906.5,1.3469]
[1742122344848,2.4705204,1906.6,1906.5,1.3469]
[1742122345051,2.4705204,1906.6,1906.5,4.7899]
[1742122346547,2.4705204,1906.6,1906.5,3.443]
[1742122346852,4.0440304,1906.6,1906.3,3.443]
[1742122347046,1.04907,1906.4,1906.3,3.443]
[1742122347246,1.04907,1906.4,1906.3,4.8277]
[1742122347553,3.80927,1906.4,1906.3,4.8277]
[1742122347949,2.40867,1906.4,1906.3,4.8277]
[1742122348350,2.40867,1906.4,1906.3,3.443]
[1742122348551,2.40867,1906.4,1906.3,4.8277]
[1742122351452,2.40867,1906.4,1906.3,3.443]
[1742122352051,1.04913,1906.3,1906.2,3.2078]
[1742122352251,1.04928,1906.1,1905.9,2.2936]
[1742122352456,1.04928,1906.1,1906.0,1.04927]
[1742122352655,1.04929,1906.0,1905.9,44.243]
[1742122352856,3.11259,1906.0,1905.9,44.243]
[1742122353055,3.11259,1906.0,1905.9,45.29235]
[1742122353259,3.11259,1906.0,1905.9,44.243]
[1742122353959,3.11259,1906.0,1905.9,45.29235]
[1742122354159,2.0633,1906.0,1905.9,47.79235]
[1742122354359,2.15479595,1906.1,1906.0,1.04929]
[1742122354954,1.04927,1906.1,1906.0,41.84929]
[1742122356062,2.49354,1906.2,1906.1,1.04924]
[1742122356264,1.4443,1906.2,1906.1,3.443]
[1742122356560,2.49348,1906.2,1906.1,3.443]
[1742122358859,2.49348,1906.2,1906.0,40.8]
[1742122358860,1.04924,1906.1,1906.0,40.8]
[1742122359061,2.45344,1906.1,1906.0,44.243]
[1742122359361,2.45344,1906.1,1906.0,45.29229]
[1742122359754,1.04924,1906.1,1906.0,45.29229]
[1742122360466,2.36612,1906.2,1906.1,1.04924]
[1742122360660,1.04922,1906.2,1906.1,1.04924]
[1742122361358,3.2078,1906.3,1906.2,1.04918]
[1742122361561,3.2078,1906.3,1906.2,1.76658]
[1742122362361,1.0491,1906.4,1906.3,1.04913]
[1742122362666,1.0491,1906.4,1906.3,5.21423]
[1742122364464,2.36596,1906.5,1906.4,1.04907]
[1742122364856,1.0568504,1906.6,1906.5,1.04902]
[1742122365549,2.5166504,1906.6,1906.5,1.04902]
[1742122365753,1.0568504,1906.6,1906.5,1.04902]
[1742122366664,0.0078604,1906.6,1906.5,4.25682]
[1742122366865,1.0568204,1906.6,1906.5,4.25682]
[1742122367455,0.0078604,1906.6,1906.5,4.25682]
[1742122368663,1.0568204,1906.6,1906.5,4.25682]
[1742122368962,0.0078604,1906.6,1906.5,4.25682]
[1742122369164,0.0078604,1906.6,1906.5,4.98482]
[1742122369564,1.0568204,1906.6,1906.5,4.98482]
[1742122370063,1.0568204,1906.6,1906.5,3.9358]
[1742122370266,2.5012204,1906.6,1906.5,4.98482]
[1742122370465,0.0078604,1906.6,1906.5,6.31932]
[1742122372067,1.0568204,1906.6,1906.5,6.31932]
[1742122372272,0.0078604,1906.6,1906.5,6.31932]
[1742122373168,1.0568204,1906.6,1906.5,6.31932]
[1742122373564,1.0568204,1906.6,1906.5,5.2703]
[1742122373769,1.0568204,1906.6,1906.5,7.9843]
[1742122374363,2.3901204,1906.6,1906.5,7.9843]
[1742122375568,2.3901204,1906.6,1906.5,9.03332]
[1742122375771,1.0568204,1906.6,1906.5,9.03332]
[1742122375969,0.0078604,1906.6,1906.5,9.03332]
[1742122379372,1.0568204,1906.6,1906.5,9.03332]
[1742122379573,2.4652204,1906.6,1906.5,9.03332]
[1742122380574,2.4652204,1906.6,1906.5,4.5423]
[1742122380770,2.4652204,1906.6,1906.5,7.9843]
[1742122381279,2.4652204,1906.6,1906.5,6.6498]
[1742122382272,1.04907,1906.4,1906.3,31.3856]
[1742122382480,1.04907,1906.4,1906.3,34.8276]
[1742122382675,1.04907,1906.4,1906.3,31.3856]
[1742122382873,2.40767,1906.4,1906.3,34.8276]
[1742122383181,2.40767,1906.4,1906.3,32.534]
[1742122383777,2.40767,1906.4,1906.3,33.9189]
[1742122384173,0.6989,1906.4,1906.3,34.96803]
[1742122384377,1.3397,1906.5,1906.4,1.04907]
[1742122384576,2.38872,1906.5,1906.4,1.3205]
[1742122386372,1.04907,1906.4,1906.3,32.534]
[1742122386570,2.50757,1906.4,1906.3,33.8545]
[1742122386766,2.50757,1906.4,1906.3,32.534]
[1742122387267,2.50757,1906.4,1906.3,29.092]
[1742122387472,2.50757,1906.4,1906.3,32.534]
[1742122389169,1.04913,1906.3,1906.2,1.3611]
[1742122389375,3.09693,1906.3,1906.2,3.442]
[1742122389988,1.04924,1906.1,1906.0,45.3689]
[1742122390192,1.04924,1906.1,1906.0,48.8109]
[1742122390587,2.41074,1906.1,1906.0,49.86019]
[1742122391487,1.3615,1906.1,1906.0,49.86019]
[1742122391687,2.41074,1906.1,1906.0,49.86019]
[1742122393192,1.04921,1906.2,1906.1,1.04918]
[1742122393398,2.46231,1906.2,1906.1,3.09518]
[1742122394100,1.4131,1906.2,1906.1,3.77428]
[1742122394398,1.04917,1906.3,1906.2,1.04918]
[1742122394694,1.04917,1906.3,1906.2,5.61948]
[1742122395099,3.18183,1906.4,1906.3,1.04913]
[1742122395300,3.18183,1906.4,1906.3,5.85363]
[1742122396402,2.46223,1906.4,1906.3,5.85363]
[1742122396793,2.46223,1906.4,1906.3,4.8045]
[1742122397992,2.46223,1906.4,1906.3,3.442]
[1742122398199,2.46223,1906.4,1906.3,4.8715]
[1742122399906,2.46223,1906.4,1906.3,5.92063]
[1742122401407,1.04906,1906.5,1906.4,1.04907]
[1742122401602,1.04906,1906.5,1906.4,3.22957]
[1742122402701,1.4669604,1906.6,1906.5,1.04902]
[1742122402895,2.5159204,1906.6,1906.5,3.14092]
[1742122403801,2.5159204,1906.6,1906.5,2.44372]
[1742122405103,2.5159204,1906.6,1906.5,5.65152]
[1742122407305,1.4669604,1906.6,1906.5,5.65152]
[1742122407606,0.0078604,1906.6,1906.5,5.65152]
[1742122409200,3.10554,1906.9,1906.8,1.04885]
[1742122409400,3.10554,1906.9,1906.8,4.49085]
[1742122409800,2.43114,1906.9,1906.8,4.49085]
[1742122409994,1.71679,1907.0,1906.9,1.0488]
[1742122410197,2.0503,1907.0,1906.9,5.6127]
[1742122410402,0.6822604,1907.1,1907.0,1.04874]
[1742122410608,1.7309504,1907.1,1907.0,1.3561]
[1742122411001,3.1132504,1907.1,1907.0,1.3561]
[1742122411202,3.1132504,1907.1,1907.0,2.40484]
[1742122411505,0.0078604,1907.1,1907.0,2.40484]
[1742122412497,1.0565504,1907.1,1907.0,2.40484]
[1742122412907,1.0565504,1907.1,1907.0,43.20484]
[1742122413412,1.0565504,1907.1,1907.0,42.1561]
[1742122413609,1.0565504,1907.1,1907.0,43.20484]
[1742122414105,1.0565504,1907.1,1907.0,42.1561]
[1742122414311,0.0078604,1907.1,1906.9,1.04876]
[1742122414605,3.10909,1907.0,1906.9,1.3941]
[1742122414805,3.78549,1907.0,1906.9,4.8351]
[1742122417011,3.78549,1907.0,1906.9,5.8839]
[1742122417707,1.0565904,1907.1,1907.0,1.04874]
[1742122418011,1.0565904,1907.1,1907.0,2.43754]
[1742122418413,0.0078604,1907.1,1907.0,2.43754]
[1742122418612,0.0078604,1907.1,1907.0,6.36654]
[1742122418810,1.0486,1907.3,1907.2,1.04863]
[1742122419006,1.0486,1907.3,1907.2,7.69743]
[1742122419412,1.0486,1907.3,1907.2,9.08623]
[1742122419612,1.4231,1907.4,1907.3,1.04858]
[1742122419814,1.4309604,1907.4,1907.3,2.43738]
[1742122420005,0.0078604,1907.4,1907.3,2.43738]
[1742122421117,24.65911546,1907.7,1907.6,1.04841]
[1742122421322,24.65911546,1907.7,1907.6,6.78301]
[1742122421508,1.04831,1907.8,1907.7,1.04836]
[1742122421813,1.3601,1907.8,1907.7,2.44146]
[1742122422813,1.3601,1907.8,1907.7,43.24146]
[1742122424614,0.0078604,1907.9,1907.8,1.0483]
[1742122424913,0.0078604,1907.9,1907.8,6.3041]
[1742122425213,1.4334604,1907.9,1907.8,3.0963]
[1742122426117,2.4817104,1907.9,1907.8,3.0963]
[1742122427216,2.4817104,1907.9,1907.8,2.3786]
[1742122427810,2.4817104,1907.9,1907.8,1.3303]
[1742122428404,2.4817104,1907.9,1907.8,2.3786]
[1742122429517,1.4334604,1907.9,1907.8,2.3786]
[1742122429918,2.4817104,1907.9,1907.8,2.3786]
[1742122430118,1.4334604,1907.9,1907.8,2.3786]
[1742122430514,1.4334604,1907.9,1907.8,5.5864]
[1742122430710,0.0078604,1907.9,1907.8,5.5864]
[1742122431111,1.357,1908.1,1908.0,1.04819]
[1742122431312,1.357,1908.1,1908.0,4.48719]
[1742122431711,1.357,1908.1,1908.0,5.87039]
[1742122432609,2.40514,1908.1,1908.0,5.87039]
[1742122433421,2.40514,1908.1,1908.0,3.439]
[1742122434712,2.40514,1908.1,1908.0,4.48719]
[1742122435625,2.40514,1908.1,1908.0,3.439]
[1742122435924,2.40514,1908.1,1908.0,4.48719]
[1742122444426,1.357,1908.1,1908.0,4.48719]
[1742122444627,0.0078604,1908.2,1908.1,1.04814]
[1742122444826,1.04802,1908.4,1908.3,1.04803]
[1742122445027,1.04802,1908.4,1908.3,4.48703]
[1742122446531,2.5073304,1908.5,1908.4,1.04797]
[1742122446728,1.4593604,1908.5,1908.4,1.04797]
[1742122446934,1.4593604,1908.5,1908.4,2.49577]
[1742122447126,0.7291604,1908.5,1908.4,2.49577]
[1742122447327,1.7770804,1908.5,1908.4,2.49577]
[1742122447632,1.7770804,1908.5,1908.4,1.4478]
[1742122448132,1.7770804,1908.5,1908.4,2.49577]
[1742122448833,1.7770804,1908.5,1908.4,1.4478]
[1742122449234,1.7770804,1908.5,1908.4,2.49577]
[1742122451335,0.7291604,1908.5,1908.4,2.49577]
[1742122451731,1.7770804,1908.5,1908.4,2.49577]
[1742122451927,3.2096804,1908.5,1908.4,2.49577]
[1742122452132,3.2096804,1908.5,1908.4,1.4478]
[1742122452333,1.04797,1908.4,1908.3,3.439]
[1742122452529,1.04803,1908.3,1908.2,4.5938]
[1742122452734,1.04801,1908.4,1908.3,1.04798]
[1742122452935,3.89861,1908.4,1908.3,1.04798]
[1742122454844,1.04803,1908.3,1908.2,7.69384]
[1742122455035,2.47793,1908.3,1908.2,6.6458]
[1742122455537,2.47793,1908.3,1908.2,3.438]
[1742122456542,1.04814,1908.1,1908.0,1.04815]
[1742122456741,1.04814,1908.1,1908.0,4.48615]
[1742122457345,1.75894,1908.1,1908.0,4.48615]
[1742122457539,0.7108,1908.1,1908.0,4.48615]
[1742122457842,2.47802,1908.2,1908.1,1.04814]
[1742122458534,1.04814,1908.1,1908.0,4.48616]
[1742122458735,3.87224,1908.1,1908.0,4.48616]
[1742122460646,0.7024,1908.1,1908.0,4.48616]
[1742122461945,2.39502,1908.2,1908.1,1.04814]
[1742122462443,0.6931,1908.3,1908.2,1.04808]
[1742122462641,1.74113,1908.3,1908.2,1.04808]
[1742122462843,3.07761,1908.4,1908.3,1.04803]
[1742122463143,4.2636204,1908.5,1908.3,3.438]
[1742122463349,4.2636204,1908.5,1908.4,1.04797]
[1742122463736,5.7073204,1908.5,1908.4,1.04797]
[1742122464242,1.04797,1908.4,1908.3,4.48602]
[1742122464751,5.7073204,1908.5,1908.4,1.04797]
[1742122465343,0.0078604,1908.5,1908.4,4.25577]
[1742122465640,0.0078604,1908.5,1908.4,4.94347]
[1742122467543,1.3401604,1908.5,1908.4,4.94347]
[1742122468761,2.3880804,1908.5,1908.4,6.30817]
[1742122469161,2.3880804,1908.5,1908.4,5.62047]
[1742122469366,1.04803,1908.3,1908.2,3.34167]
[1742122469663,1.04803,1908.3,1908.2,5.7306]